[Event "Late-Titled-Tuesday-Blitz-October-24-2023"]
[Site "Chess.com"]
[Date "2023.10.24"]
[Round "5"]
[White "SergioMoralesG"]
[Black "protectiago"]
[Result "1-0"]
[WhiteElo "2412"]
[BlackElo "2062"]
[TimeControl "180+1"]
[EndTime "14:55:49 PDT"]
[Termination "SergioMoralesG won on time"]

1. d4 {[%clk 0:03:00.9]} 1... Nf6 {[%clk 0:02:59.5]} 2. c4 {[%clk 0:03:01.3]}
2... g6 {[%clk 0:02:59.7]} 3. Nc3 {[%clk 0:03:00.8]} 3... d5 {[%clk 0:02:59.9]}
4. Nf3 {[%clk 0:02:59.6]} 4... Bg7 {[%clk 0:02:59.5]} 5. e3 {[%clk 0:03:00.2]}
5... O-O {[%clk 0:02:59.1]} 6. cxd5 {[%clk 0:03:00.8]} 6... Nxd5 {[%clk
0:02:58.8]} 7. Bc4 {[%clk 0:03:01.4]} 7... Nxc3 {[%clk 0:02:56.9]} 8. bxc3
{[%clk 0:03:02.3]} 8... c5 {[%clk 0:02:57.1]} 9. O-O {[%clk 0:03:02.5]} 9... Qa5
{[%clk 0:02:42.9]} 10. Bb2 {[%clk 0:02:52]} 10... Nc6 {[%clk 0:02:27.5]} 11. h3
{[%clk 0:02:45.2]} 11... b5 {[%clk 0:02:22.1]} 12. Bd5 {[%clk 0:02:22.7]} 12...
Qb6 {[%clk 0:02:21]} 13. Qe2 {[%clk 0:02:14.3]} 13... Rd8 {[%clk 0:02:17.2]} 14.
Bb3 {[%clk 0:02:08.2]} 14... a5 {[%clk 0:02:08.2]} 15. Ng5 {[%clk 0:01:56.8]}
15... c4 {[%clk 0:01:56.5]} 16. Bc2 {[%clk 0:01:54.6]} 16... Ba6 {[%clk
0:01:37.8]} 17. f4 {[%clk 0:01:40.4]} 17... e6 {[%clk 0:01:16.8]} 18. h4 {[%clk
0:01:39.2]} 18... Ne7 {[%clk 0:01:14.8]} 19. h5 {[%clk 0:01:31.6]} 19... b4
{[%clk 0:01:10]} 20. hxg6 {[%clk 0:01:27.4]} 20... hxg6 {[%clk 0:01:09.7]} 21.
Qg4 {[%clk 0:01:23.8]} 21... Nd5 {[%clk 0:00:55.1]} 22. Nxf7 {[%clk 0:00:56.7]}
22... Kxf7 {[%clk 0:00:53.9]} 23. Qxg6+ {[%clk 0:00:55.1]} 23... Kg8 {[%clk
0:00:43]} 24. Qh7+ {[%clk 0:00:43.7]} 24... Kf8 {[%clk 0:00:39.1]} 25. f5 {[%clk
0:00:35.9]} 25... Nf6 {[%clk 0:00:24.4]} 26. Qg6 {[%clk 0:00:18.1]} 26... Bb7
{[%clk 0:00:13.6]} 27. Rf2 {[%clk 0:00:15.8]} 27... exf5 {[%clk 0:00:08.2]} 28.
Rxf5 {[%clk 0:00:12.3]} 28... Kg8 {[%clk 0:00:05.4]} 29. Raf1 {[%clk 0:00:11.2]}
29... Rf8 {[%clk 0:00:04.8]} 30. cxb4 {[%clk 0:00:05.8]} 30... Qc6 {[%clk
0:00:02.8]} 31. d5 {[%clk 0:00:05]} 1-0

[Event "Late-Titled-Tuesday-Blitz-October-24-2023"]
[Site "Chess.com"]
[Date "2023.10.24"]
[Round "5"]
[White "becemix"]
[Black "Mbneu"]
[Result "1-0"]
[WhiteElo "2376"]
[BlackElo "2248"]
[TimeControl "180+1"]
[EndTime "14:55:53 PDT"]
[Termination "becemix won by resignation"]

1. d4 {[%clk 0:03:00.9]} 1... Nf6 {[%clk 0:02:59.3]} 2. Nc3 {[%clk 0:03:01.1]}
2... c5 {[%clk 0:02:59.3]} 3. e3 {[%clk 0:03:01.1]} 3... cxd4 {[%clk 0:02:57.8]}
4. exd4 {[%clk 0:03:01.2]} 4... g6 {[%clk 0:02:58]} 5. Nf3 {[%clk 0:03:01.1]}
5... Bg7 {[%clk 0:02:58.3]} 6. Bf4 {[%clk 0:03:01.7]} 6... O-O {[%clk
0:02:57.9]} 7. Bd3 {[%clk 0:02:54.3]} 7... d6 {[%clk 0:02:53.2]} 8. O-O {[%clk
0:02:54.6]} 8... Nc6 {[%clk 0:02:46.2]} 9. h3 {[%clk 0:02:54.1]} 9... Be6 {[%clk
0:02:41.1]} 10. Re1 {[%clk 0:02:48.8]} 10... Rc8 {[%clk 0:02:36.7]} 11. Bg5
{[%clk 0:02:42.1]} 11... Nb4 {[%clk 0:02:29.5]} 12. Bb5 {[%clk 0:02:31.9]} 12...
a6 {[%clk 0:02:26.9]} 13. Ba4 {[%clk 0:02:31.8]} 13... Nbd5 {[%clk 0:02:17.6]}
14. Nxd5 {[%clk 0:02:22.6]} 14... Bxd5 {[%clk 0:02:13.7]} 15. Bb3 {[%clk
0:02:19]} 15... Bc4 {[%clk 0:02:07.8]} 16. c3 {[%clk 0:02:14]} 16... Re8 {[%clk
0:02:00.1]} 17. Bxc4 {[%clk 0:02:08.2]} 17... Rxc4 {[%clk 0:01:59]} 18. Qb3
{[%clk 0:02:08.6]} 18... b5 {[%clk 0:01:52.8]} 19. a4 {[%clk 0:02:02.1]} 19...
Qb6 {[%clk 0:01:42.4]} 20. axb5 {[%clk 0:01:59.3]} 20... Qxb5 {[%clk 0:01:36.2]}
21. Qxb5 {[%clk 0:01:43.4]} 21... axb5 {[%clk 0:01:35.4]} 22. Ra7 {[%clk
0:01:34.8]} 22... e6 {[%clk 0:01:32.3]} 23. Nd2 {[%clk 0:01:33.6]} 23... Rcc8
{[%clk 0:01:26.1]} 24. Bf4 {[%clk 0:01:25.9]} 24... Bf8 {[%clk 0:01:20.6]} 25.
Rea1 {[%clk 0:01:21.9]} 25... Nd5 {[%clk 0:01:19]} 26. Bg3 {[%clk 0:01:18.8]}
26... Re7 {[%clk 0:01:08.7]} 27. Ra8 {[%clk 0:01:16.1]} 27... Rec7 {[%clk
0:01:08.3]} 28. Rxc8 {[%clk 0:01:13.6]} 28... Rxc8 {[%clk 0:01:07.8]} 29. Ra7
{[%clk 0:01:11.1]} 29... Rb8 {[%clk 0:01:03.5]} 30. Kf1 {[%clk 0:01:09.5]} 30...
Kg7 {[%clk 0:01:01.9]} 31. Rd7 {[%clk 0:01:07]} 31... Rb6 {[%clk 0:01:00.3]} 32.
Ne4 {[%clk 0:01:05.4]} 32... Nf6 {[%clk 0:00:55.2]} 33. Nxf6 {[%clk 0:00:54.9]}
33... Kxf6 {[%clk 0:00:54.8]} 34. Rd8 {[%clk 0:00:54.7]} 34... Kg7 {[%clk
0:00:50.8]} 35. Ke2 {[%clk 0:00:54.5]} 35... Be7 {[%clk 0:00:48.3]} 36. Rd7
{[%clk 0:00:53.8]} 36... Bf8 {[%clk 0:00:46.5]} 37. Kd3 {[%clk 0:00:54.1]} 37...
h6 {[%clk 0:00:40.6]} 38. Kc2 {[%clk 0:00:50.7]} 38... g5 {[%clk 0:00:40.2]} 39.
Kb3 {[%clk 0:00:50]} 39... d5 {[%clk 0:00:37.6]} 40. Rd8 {[%clk 0:00:44.3]}
40... Be7 {[%clk 0:00:37.3]} 41. Rb8 {[%clk 0:00:44.1]} 41... Rxb8 {[%clk
0:00:36.2]} 42. Bxb8 {[%clk 0:00:44.5]} 42... f6 {[%clk 0:00:34.6]} 43. Ba7
{[%clk 0:00:44.3]} 43... e5 {[%clk 0:00:33.2]} 44. Bc5 {[%clk 0:00:44.8]} 44...
Bd8 {[%clk 0:00:31.8]} 45. Kb4 {[%clk 0:00:44]} 45... e4 {[%clk 0:00:32.1]} 46.
Kxb5 {[%clk 0:00:43.2]} 46... Bc7 {[%clk 0:00:30.5]} 47. Kc6 {[%clk 0:00:41.6]}
47... Bh2 {[%clk 0:00:28.9]} 48. Kxd5 {[%clk 0:00:40.9]} 48... f5 {[%clk
0:00:27.1]} 49. Ke6 {[%clk 0:00:38.2]} 49... Kg6 {[%clk 0:00:24.9]} 50. d5
{[%clk 0:00:38.3]} 50... f4 {[%clk 0:00:17.9]} 51. d6 {[%clk 0:00:36.3]} 51...
g4 {[%clk 0:00:14.7]} 52. hxg4 {[%clk 0:00:34.4]} 1-0

[Event "Late-Titled-Tuesday-Blitz-October-24-2023"]
[Site "Chess.com"]
[Date "2023.10.24"]
[Round "5"]
[White "GMKrikor"]
[Black "pedromartinez91"]
[Result "1-0"]
[WhiteElo "2826"]
[BlackElo "2623"]
[TimeControl "180+1"]
[EndTime "14:56:00 PDT"]
[Termination "GMKrikor won by resignation"]

1. Nf3 {[%clk 0:03:00.9]} 1... d5 {[%clk 0:02:54.9]} 2. c4 {[%clk 0:03:00.4]}
2... c6 {[%clk 0:02:51.8]} 3. d4 {[%clk 0:02:59.9]} 3... Nf6 {[%clk 0:02:51.3]}
4. Nc3 {[%clk 0:02:59.9]} 4... e6 {[%clk 0:02:50.3]} 5. cxd5 {[%clk 0:02:59.3]}
5... exd5 {[%clk 0:02:47.6]} 6. Bf4 {[%clk 0:02:59.9]} 6... Bd6 {[%clk
0:02:46.2]} 7. Bxd6 {[%clk 0:02:58]} 7... Qxd6 {[%clk 0:02:47.1]} 8. e3 {[%clk
0:02:58.5]} 8... O-O {[%clk 0:02:27.6]} 9. Qb3 {[%clk 0:02:56.9]} 9... a5 {[%clk
0:02:22.6]} 10. Bd3 {[%clk 0:02:55.8]} 10... Na6 {[%clk 0:02:18.5]} 11. O-O
{[%clk 0:02:51.7]} 11... Nc7 {[%clk 0:02:04.5]} 12. Rac1 {[%clk 0:02:47.9]}
12... Qb4 {[%clk 0:01:59.1]} 13. Qc2 {[%clk 0:02:47.6]} 13... Nce8 {[%clk
0:01:42.7]} 14. a3 {[%clk 0:02:45]} 14... Qe7 {[%clk 0:01:42.3]} 15. Ne5 {[%clk
0:02:37.4]} 15... Nd6 {[%clk 0:01:36.1]} 16. Rce1 {[%clk 0:02:36.7]} 16... h6
{[%clk 0:01:31.1]} 17. f4 {[%clk 0:02:35.3]} 17... Bd7 {[%clk 0:01:18.6]} 18. h3
{[%clk 0:02:33.2]} 18... Rfc8 {[%clk 0:01:15.4]} 19. Na4 {[%clk 0:02:22.8]}
19... Nfe4 {[%clk 0:01:10.9]} 20. Nb6 {[%clk 0:02:07.2]} 20... Be8 {[%clk
0:00:51.9]} 21. Nxa8 {[%clk 0:02:04.3]} 21... Rxa8 {[%clk 0:00:51.3]} 22. b4
{[%clk 0:01:52.4]} 22... axb4 {[%clk 0:00:33.9]} 23. axb4 {[%clk 0:01:53.3]}
23... Ng3 {[%clk 0:00:34.2]} 24. Rf3 {[%clk 0:01:46.4]} 24... Nge4 {[%clk
0:00:32.9]} 25. Rff1 {[%clk 0:01:32.7]} 25... Ng3 {[%clk 0:00:32.6]} 26. Rf3
{[%clk 0:01:29.9]} 26... Nge4 {[%clk 0:00:32.8]} 27. Bxe4 {[%clk 0:01:30.5]}
27... Nxe4 {[%clk 0:00:31.4]} 28. Qb2 {[%clk 0:01:29.8]} 28... f6 {[%clk
0:00:28.6]} 29. Nd3 {[%clk 0:01:27.7]} 29... Bh5 {[%clk 0:00:28.4]} 30. Rff1
{[%clk 0:01:26.6]} 30... Ng3 {[%clk 0:00:27.5]} 31. Rf2 {[%clk 0:01:27.1]} 31...
Bg6 {[%clk 0:00:24.4]} 32. f5 {[%clk 0:01:12]} 32... Bxf5 {[%clk 0:00:22.2]} 33.
Nf4 {[%clk 0:01:12.8]} 33... Be4 {[%clk 0:00:15.5]} 34. Ra1 {[%clk 0:01:07.7]}
34... Re8 {[%clk 0:00:15]} 35. b5 {[%clk 0:00:56.8]} 35... Nf5 {[%clk
0:00:12.6]} 36. bxc6 {[%clk 0:00:55.3]} 36... bxc6 {[%clk 0:00:13.5]} 37. Ra3
{[%clk 0:00:50.8]} 37... Nd6 {[%clk 0:00:12.6]} 38. Qb4 {[%clk 0:00:47.8]} 38...
Nc4 {[%clk 0:00:11.5]} 39. Qxe7 {[%clk 0:00:47.7]} 39... Rxe7 {[%clk 0:00:12.4]}
40. Rc3 {[%clk 0:00:46.6]} 40... g5 {[%clk 0:00:12.3]} 41. Nh5 {[%clk
0:00:42.8]} 41... f5 {[%clk 0:00:12.4]} 42. Nf6+ {[%clk 0:00:41.2]} 42... Kg7
{[%clk 0:00:12.8]} 43. Nxe4 {[%clk 0:00:41.7]} 43... fxe4 {[%clk 0:00:13.7]} 44.
Ra2 {[%clk 0:00:40.6]} 44... Rb7 {[%clk 0:00:13.6]} 45. Ra6 {[%clk 0:00:39.9]}
45... Rb1+ {[%clk 0:00:13.8]} 46. Kh2 {[%clk 0:00:40.4]} 46... Re1 {[%clk
0:00:14.4]} 47. Rxc6 {[%clk 0:00:39.8]} 47... Nxe3 {[%clk 0:00:14.8]} 48. Ra3
{[%clk 0:00:32.6]} 48... Rf1 {[%clk 0:00:04.1]} 49. Rxe3 {[%clk 0:00:32.1]}
49... h5 {[%clk 0:00:04.5]} 1-0

[Event "Late-Titled-Tuesday-Blitz-October-24-2023"]
[Site "Chess.com"]
[Date "2023.10.24"]
[Round "5"]
[White "Semetey"]
[Black "MajorCoast"]
[Result "1-0"]
[WhiteElo "2523"]
[BlackElo "2267"]
[TimeControl "180+1"]
[EndTime "14:56:00 PDT"]
[Termination "Semetey won on time"]

1. a3 {[%clk 0:02:52.8]} 1... d5 {[%clk 0:02:58.5]} 2. e3 {[%clk 0:02:48.2]}
2... Nf6 {[%clk 0:02:58.1]} 3. c4 {[%clk 0:02:48.1]} 3... e6 {[%clk 0:02:57.3]}
4. Nf3 {[%clk 0:02:45.7]} 4... Be7 {[%clk 0:02:56.9]} 5. b4 {[%clk 0:02:44.8]}
5... O-O {[%clk 0:02:55.9]} 6. Bb2 {[%clk 0:02:44.9]} 6... c6 {[%clk 0:02:55.5]}
7. d4 {[%clk 0:02:42.8]} 7... b6 {[%clk 0:02:51.9]} 8. Nbd2 {[%clk 0:02:42.8]}
8... Bb7 {[%clk 0:02:52.2]} 9. Bd3 {[%clk 0:02:40.5]} 9... Nbd7 {[%clk
0:02:47.2]} 10. O-O {[%clk 0:02:40]} 10... c5 {[%clk 0:02:44.2]} 11. dxc5 {[%clk
0:02:35.9]} 11... bxc5 {[%clk 0:02:42]} 12. b5 {[%clk 0:02:36.1]} 12... Nb6
{[%clk 0:02:33.7]} 13. a4 {[%clk 0:02:36.1]} 13... dxc4 {[%clk 0:02:21.4]} 14.
Nxc4 {[%clk 0:02:35.5]} 14... Qc7 {[%clk 0:01:51.8]} 15. Qc2 {[%clk 0:02:34.2]}
15... Nbd5 {[%clk 0:01:40.2]} 16. Qb3 {[%clk 0:02:24.4]} 16... Nb4 {[%clk
0:01:33.2]} 17. Be2 {[%clk 0:02:23.3]} 17... Rfd8 {[%clk 0:01:32.1]} 18. Rfd1
{[%clk 0:02:20.9]} 18... Rxd1+ {[%clk 0:01:30.3]} 19. Rxd1 {[%clk 0:02:19.8]}
19... Rd8 {[%clk 0:01:31.2]} 20. Nfe5 {[%clk 0:02:19.2]} 20... Nfd5 {[%clk
0:01:10.3]} 21. Bf3 {[%clk 0:02:02.5]} 21... Bf6 {[%clk 0:01:04]} 22. h3 {[%clk
0:01:53.9]} 22... h6 {[%clk 0:01:02.9]} 23. g3 {[%clk 0:01:33.6]} 23... Nb6
{[%clk 0:01:02.5]} 24. Rxd8+ {[%clk 0:01:22.5]} 24... Bxd8 {[%clk 0:01:00.3]}
25. Bxb7 {[%clk 0:01:20.8]} 25... Qxb7 {[%clk 0:00:59.6]} 26. Nd6 {[%clk
0:01:10.2]} 26... Qd5 {[%clk 0:00:45.1]} 27. Qxd5 {[%clk 0:01:09.6]} 27... exd5
{[%clk 0:00:41.1]} 28. Nc6 {[%clk 0:00:41]} 28... Bc7 {[%clk 0:00:33.7]} 29. Ne8
{[%clk 0:00:34.7]} 29... Nxa4 {[%clk 0:00:26]} 30. Bxg7 {[%clk 0:00:34]} 30...
Bb6 {[%clk 0:00:21.1]} 31. Be5 {[%clk 0:00:28.5]} 31... Nd3 {[%clk 0:00:13.4]}
32. Nf6+ {[%clk 0:00:24.3]} 32... Kf8 {[%clk 0:00:11.5]} 33. Bd6+ {[%clk
0:00:20.3]} 33... Kg7 {[%clk 0:00:10.9]} 34. Nxd5 {[%clk 0:00:21.2]} 34... c4
{[%clk 0:00:07.8]} 35. Ne5 {[%clk 0:00:19.2]} 35... Nxe5 {[%clk 0:00:05.3]} 36.
Bxe5+ {[%clk 0:00:20.1]} 36... Kg6 {[%clk 0:00:04.2]} 37. g4 {[%clk 0:00:18.7]}
37... Ba5 {[%clk 0:00:04.4]} 38. Kf1 {[%clk 0:00:18.3]} 38... c3 {[%clk
0:00:04.8]} 39. Nf4+ {[%clk 0:00:15.9]} 39... Kh7 {[%clk 0:00:03.8]} 40. Nd3
{[%clk 0:00:15.7]} 40... c2 {[%clk 0:00:03.6]} 41. Ke2 {[%clk 0:00:15.5]} 1-0

[Event "Late-Titled-Tuesday-Blitz-October-24-2023"]
[Site "Chess.com"]
[Date "2023.10.24"]
[Round "5"]
[White "HanSchut"]
[Black "Sjakkerntobi"]
[Result "0-1"]
[WhiteElo "2306"]
[BlackElo "2512"]
[TimeControl "180+1"]
[EndTime "14:56:01 PDT"]
[Termination "Sjakkerntobi won on time"]

1. e4 {[%clk 0:03:00.9]} 1... e5 {[%clk 0:02:59]} 2. Nf3 {[%clk 0:03:00.7]} 2...
Nc6 {[%clk 0:02:59.7]} 3. Bc4 {[%clk 0:03:01]} 3... Nf6 {[%clk 0:02:58.2]} 4. d4
{[%clk 0:03:01.1]} 4... exd4 {[%clk 0:02:57.7]} 5. e5 {[%clk 0:03:02]} 5... d5
{[%clk 0:02:58]} 6. Bb5 {[%clk 0:03:02.6]} 6... Ne4 {[%clk 0:02:58.3]} 7. Nxd4
{[%clk 0:03:03.1]} 7... Bd7 {[%clk 0:02:58.9]} 8. Bxc6 {[%clk 0:03:03.7]} 8...
bxc6 {[%clk 0:02:59.3]} 9. O-O {[%clk 0:03:04.1]} 9... Bc5 {[%clk 0:02:59.4]}
10. f3 {[%clk 0:03:02.7]} 10... Ng5 {[%clk 0:02:59.6]} 11. Be3 {[%clk
0:03:03.3]} 11... Bb6 {[%clk 0:02:59.3]} 12. f4 {[%clk 0:03:03.7]} 12... Ne4
{[%clk 0:02:59.7]} 13. Nd2 {[%clk 0:03:04.2]} 13... Nxd2 {[%clk 0:03:00.4]} 14.
Qxd2 {[%clk 0:03:04.8]} 14... O-O {[%clk 0:02:55.8]} 15. Nb3 {[%clk 0:03:02.5]}
15... Qe7 {[%clk 0:02:55.4]} 16. Qc3 {[%clk 0:02:58.6]} 16... a5 {[%clk
0:02:50.7]} 17. a3 {[%clk 0:02:47.1]} 17... Rab8 {[%clk 0:02:41.8]} 18. Kh1
{[%clk 0:02:34.2]} 18... f6 {[%clk 0:02:34.6]} 19. Bc5 {[%clk 0:02:19.5]} 19...
Bxc5 {[%clk 0:02:33.7]} 20. Nxc5 {[%clk 0:02:20.4]} 20... fxe5 {[%clk 0:02:33]}
21. fxe5 {[%clk 0:02:20.8]} 21... Bf5 {[%clk 0:02:29.5]} 22. Rf2 {[%clk
0:01:47.5]} 22... Rbe8 {[%clk 0:02:12.1]} 23. Raf1 {[%clk 0:01:27.1]} 23... Be4
{[%clk 0:02:02]} 24. Rxf8+ {[%clk 0:01:19.5]} 24... Rxf8 {[%clk 0:02:02.9]} 25.
Re1 {[%clk 0:00:53]} 25... Qh4 {[%clk 0:01:53.5]} 26. Nxe4 {[%clk 0:00:47.4]}
26... Qxe4 {[%clk 0:01:46.5]} 27. h3 {[%clk 0:00:39.2]} 27... Qg6 {[%clk
0:01:41.8]} 28. e6 {[%clk 0:00:36.2]} 28... Rf2 {[%clk 0:01:41.5]} 29. Rg1
{[%clk 0:00:24.2]} 29... Qxe6 {[%clk 0:01:39]} 30. Qxa5 {[%clk 0:00:24.5]} 30...
h6 {[%clk 0:01:14.6]} 31. Qc3 {[%clk 0:00:20.5]} 31... Qg6 {[%clk 0:01:04.7]}
32. a4 {[%clk 0:00:17.7]} 32... Rxc2 {[%clk 0:01:04.9]} 33. Qb3 {[%clk
0:00:14.6]} 33... Rc5 {[%clk 0:00:39.2]} 34. Qb4 {[%clk 0:00:13]} 34... Rc4
{[%clk 0:00:32.4]} 35. Qb3 {[%clk 0:00:12.5]} 35... Qe4 {[%clk 0:00:29]} 36. a5
{[%clk 0:00:11.2]} 36... Rb4 {[%clk 0:00:24.9]} 37. Qd1 {[%clk 0:00:06.2]} 37...
Ra4 {[%clk 0:00:20.6]} 38. Re1 {[%clk 0:00:06.1]} 38... Rd4 {[%clk 0:00:08.9]}
39. Qc1 {[%clk 0:00:02.3]} 39... Qh4 {[%clk 0:00:09.1]} 40. Rf1 {[%clk
0:00:01.3]} 40... Rc4 {[%clk 0:00:08.2]} 0-1

[Event "Late-Titled-Tuesday-Blitz-October-24-2023"]
[Site "Chess.com"]
[Date "2023.10.24"]
[Round "5"]
[White "scandalgod"]
[Black "jimis98"]
[Result "0-1"]
[WhiteElo "2509"]
[BlackElo "2752"]
[TimeControl "180+1"]
[EndTime "14:56:03 PDT"]
[Termination "jimis98 won on time"]

1. d4 {[%clk 0:02:54]} 1... e6 {[%clk 0:02:27.3]} 2. c4 {[%clk 0:02:50]} 2... d5
{[%clk 0:02:18.3]} 3. Nf3 {[%clk 0:02:49.3]} 3... Nf6 {[%clk 0:02:18.4]} 4. g3
{[%clk 0:02:49.8]} 4... Bb4+ {[%clk 0:02:18.2]} 5. Bd2 {[%clk 0:02:49]} 5... Be7
{[%clk 0:02:18.3]} 6. Qc2 {[%clk 0:02:47.4]} 6... O-O {[%clk 0:02:01.2]} 7. Bg2
{[%clk 0:02:46.9]} 7... c6 {[%clk 0:01:59]} 8. h4 {[%clk 0:02:44.2]} 8... Ne4
{[%clk 0:01:59.3]} 9. Ng5 {[%clk 0:02:36.1]} 9... f5 {[%clk 0:01:59.2]} 10. Bf4
{[%clk 0:02:23.4]} 10... Nxg5 {[%clk 0:01:57]} 11. hxg5 {[%clk 0:02:21.3]} 11...
Bxg5 {[%clk 0:01:57.9]} 12. Qd2 {[%clk 0:02:17.4]} 12... Bf6 {[%clk 0:01:56.1]}
13. Na3 {[%clk 0:01:56.6]} 13... Nd7 {[%clk 0:01:39.7]} 14. Rc1 {[%clk
0:01:42.9]} 14... Nb6 {[%clk 0:01:37.1]} 15. c5 {[%clk 0:01:39.1]} 15... Nd7
{[%clk 0:01:36.7]} 16. b4 {[%clk 0:01:39.3]} 16... e5 {[%clk 0:01:35.8]} 17.
dxe5 {[%clk 0:01:37.6]} 17... Nxe5 {[%clk 0:01:36.7]} 18. O-O {[%clk 0:01:36.2]}
18... Be6 {[%clk 0:01:31.3]} 19. Qe3 {[%clk 0:01:30.4]} 19... Qc7 {[%clk
0:01:13]} 20. b5 {[%clk 0:01:22.3]} 20... Rae8 {[%clk 0:01:13.1]} 21. Rfd1
{[%clk 0:01:07.4]} 21... Bf7 {[%clk 0:00:58]} 22. b6 {[%clk 0:01:02.7]} 22...
axb6 {[%clk 0:00:57.6]} 23. cxb6 {[%clk 0:01:01.3]} 23... Qd6 {[%clk 0:00:57.2]}
24. Qb3 {[%clk 0:00:28.2]} 24... Qe7 {[%clk 0:00:35]} 25. Nc2 {[%clk 0:00:23.3]}
25... Nc4 {[%clk 0:00:32.2]} 26. Nd4 {[%clk 0:00:19.2]} 26... g6 {[%clk
0:00:22.6]} 27. Bh6 {[%clk 0:00:11.6]} 27... Bg7 {[%clk 0:00:18.7]} 28. Bxg7
{[%clk 0:00:11.9]} 28... Kxg7 {[%clk 0:00:19.6]} 29. e3 {[%clk 0:00:12.4]} 29...
Ra8 {[%clk 0:00:18.2]} 30. Rc2 {[%clk 0:00:10.5]} 30... Ra6 {[%clk 0:00:16.4]}
31. Qc3 {[%clk 0:00:09]} 31... Qf6 {[%clk 0:00:16.6]} 32. Rb1 {[%clk 0:00:07.9]}
32... Na3 {[%clk 0:00:14]} 33. Rbc1 {[%clk 0:00:04.1]} 33... Nxc2 {[%clk
0:00:13.9]} 34. Rxc2 {[%clk 0:00:04.2]} 34... Rxb6 {[%clk 0:00:14.4]} 35. Qc5
{[%clk 0:00:04.4]} 35... Rb1+ {[%clk 0:00:14.2]} 36. Kh2 {[%clk 0:00:04]} 36...
g5 {[%clk 0:00:07.3]} 37. Bh3 {[%clk 0:00:02.8]} 37... g4 {[%clk 0:00:06.7]} 0-1

[Event "Late-Titled-Tuesday-Blitz-October-24-2023"]
[Site "Chess.com"]
[Date "2023.10.24"]
[Round "5"]
[White "jcibarra"]
[Black "GoltsevDmitry2000"]
[Result "1-0"]
[WhiteElo "2913"]
[BlackElo "2644"]
[TimeControl "180+1"]
[EndTime "14:56:07 PDT"]
[Termination "jcibarra won by checkmate"]

1. Nf3 {[%clk 0:03:00.8]} 1... d5 {[%clk 0:02:11.6]} 2. g3 {[%clk 0:03:00.5]}
2... c6 {[%clk 0:02:12.2]} 3. Bg2 {[%clk 0:03:00.5]} 3... g6 {[%clk 0:02:12.9]}
4. O-O {[%clk 0:03:00]} 4... Bg7 {[%clk 0:02:13.4]} 5. d3 {[%clk 0:02:59.2]}
5... e5 {[%clk 0:02:13.5]} 6. e4 {[%clk 0:02:58.8]} 6... dxe4 {[%clk 0:02:12.9]}
7. dxe4 {[%clk 0:02:58.7]} 7... Qxd1 {[%clk 0:02:13.2]} 8. Rxd1 {[%clk
0:02:58.7]} 8... Ne7 {[%clk 0:02:13]} 9. Na3 {[%clk 0:02:54.9]} 9... b5 {[%clk
0:02:07.6]} 10. Be3 {[%clk 0:02:47.1]} 10... h6 {[%clk 0:02:00.7]} 11. Bc5
{[%clk 0:02:41.6]} 11... Be6 {[%clk 0:01:56.4]} 12. c4 {[%clk 0:02:29.7]} 12...
bxc4 {[%clk 0:01:50.1]} 13. Rac1 {[%clk 0:02:28.9]} 13... Nd7 {[%clk 0:01:49.8]}
14. Bd6 {[%clk 0:02:26.3]} 14... Nb6 {[%clk 0:01:44.1]} 15. Bxe5 {[%clk
0:02:19.7]} 15... O-O {[%clk 0:01:39.3]} 16. Bxg7 {[%clk 0:02:17.2]} 16... Kxg7
{[%clk 0:01:39.2]} 17. Nd4 {[%clk 0:02:18.1]} 17... Rad8 {[%clk 0:01:32.8]} 18.
Nxe6+ {[%clk 0:02:14]} 18... fxe6 {[%clk 0:01:32.3]} 19. Bf1 {[%clk 0:02:14.6]}
19... e5 {[%clk 0:01:08.5]} 20. Nxc4 {[%clk 0:02:09.9]} 20... Nxc4 {[%clk
0:01:07.7]} 21. Bxc4 {[%clk 0:02:10.6]} 21... Rd4 {[%clk 0:00:52.1]} 22. Rxd4
{[%clk 0:02:03.8]} 22... exd4 {[%clk 0:00:53]} 23. Kf1 {[%clk 0:01:53.1]} 23...
g5 {[%clk 0:00:46.8]} 24. Bb3 {[%clk 0:01:46.9]} 24... g4 {[%clk 0:00:33.7]} 25.
Ke2 {[%clk 0:01:39.8]} 25... d3+ {[%clk 0:00:23.2]} 26. Kf1 {[%clk 0:01:31.3]}
26... Ng6 {[%clk 0:00:17.8]} 27. Rxc6 {[%clk 0:01:20.3]} 27... Ne5 {[%clk
0:00:16.4]} 28. Rc5 {[%clk 0:01:07.3]} 28... Kf6 {[%clk 0:00:14.1]} 29. Bd1
{[%clk 0:01:05.3]} 29... h5 {[%clk 0:00:13.3]} 30. Ke1 {[%clk 0:01:03.7]} 30...
Rh8 {[%clk 0:00:10.2]} 31. Kd2 {[%clk 0:01:03]} 31... h4 {[%clk 0:00:10.6]} 32.
Rd5 {[%clk 0:00:53.8]} 32... hxg3 {[%clk 0:00:10.3]} 33. hxg3 {[%clk 0:00:54.6]}
33... Rh2 {[%clk 0:00:10]} 34. Ke3 {[%clk 0:00:54]} 34... Rh1 {[%clk 0:00:09.7]}
35. Bb3 {[%clk 0:00:51.3]} 35... Re1+ {[%clk 0:00:09.1]} 36. Kf4 {[%clk
0:00:51.1]} 36... Re2 {[%clk 0:00:02.3]} 37. Rd6+ {[%clk 0:00:46.2]} 37... Ke7
{[%clk 0:00:01.8]} 38. Kxe5 {[%clk 0:00:46.9]} 38... d2 {[%clk 0:00:01.3]} 39.
Rd3 {[%clk 0:00:38.4]} 39... Rxf2 {[%clk 0:00:01.5]} 40. Bd1 {[%clk 0:00:37.2]}
40... a5 {[%clk 0:00:01.9]} 41. Bxg4 {[%clk 0:00:36.9]} 41... Rg2 {[%clk
0:00:02.6]} 42. Bf5 {[%clk 0:00:35.6]} 42... a4 {[%clk 0:00:02.9]} 43. b4 {[%clk
0:00:34.2]} 43... axb3 {[%clk 0:00:02.7]} 44. axb3 {[%clk 0:00:34.7]} 44... Kf8
{[%clk 0:00:02.6]} 45. b4 {[%clk 0:00:34.2]} 45... Kg7 {[%clk 0:00:02.5]} 46. b5
{[%clk 0:00:34]} 46... Kh8 {[%clk 0:00:03.4]} 47. b6 {[%clk 0:00:33.5]} 47...
Rxg3 {[%clk 0:00:04.3]} 48. Rxd2 {[%clk 0:00:32]} 48... Rg2 {[%clk 0:00:05.2]}
49. Rd8+ {[%clk 0:00:30.4]} 49... Kg7 {[%clk 0:00:04.7]} 50. Rd7+ {[%clk
0:00:30.7]} 50... Kh8 {[%clk 0:00:04.6]} 51. b7 {[%clk 0:00:29.1]} 51... Rg8
{[%clk 0:00:03.9]} 52. Rh7# {[%clk 0:00:28.6]} 1-0